Cogmind - Beta 16.1 @@@ ROGUE MODE // 2026.04.30 @ 11:26:29 Player: SuperSwiss Result: Self-destructed Performance ------------- Evolutions (2) 1000 Regions Visited (3) 600 Robots Destroyed (56) 280 Value Destroyed (1302) 1302 Prototype IDs (5) 100 Alien Tech Used (0) 0 Bonus (0) 0 TOTAL SCORE: 3282 Bonus ------- None Cogmind --------- Core Integrity 367/550 Matter 300/300 Energy 150/150 System Corruption 3% Temperature Cool (0) Movement Rolling (128) Ox3 Location -8/Materials Parts ------- > --- POWER (1) -------- Micro Nuclear Core > --- PROPULSION (4) --- Advanced Treads Wheel Wheel Armored Wheel > --- UTILITY (4) ------ Huge Storage Unit Improved Sensor Array Seismic Detector Improved Medium Armor Plating > --- WEAPON (2) ------- Scythe > --- INVENTORY (25) --- Improved Treads Improved Treads Wheel Cesium-ion Thruster Improved VTOL Module Improved VTOL Module Improved Heat Sink High-capacity Matter Pod (200) Trap Scanner Machine Analyzer Improved Signal Interpreter Seismic Detector Improved Medium Armor Plating Improved Medium Armor Plating Improved Shield Generator Hacking Suite System Restoration Module Minigun Minigun Minigun Enhanced Autogun Improved Grenade Launcher Improved Grenade Launcher Concussive RPG (1) Peak State ------------ > --- POWER ------------ Micro Nuclear Core > --- PROPULSION ------- Advanced Treads Wheel Wheel Armored Wheel > --- UTILITY ---------- Huge Storage Unit Improved Sensor Array Seismic Detector Improved Medium Armor Plating > --- WEAPON ----------- Advanced EMP Blaster Scythe > --- INVENTORY -------- Micro Nuclear Core Improved Treads Improved Treads Wheel Cesium-ion Thruster Improved VTOL Module Improved VTOL Module Improved Heat Sink High-capacity Matter Pod Trap Scanner Machine Analyzer Improved Signal Interpreter Seismic Detector Improved Medium Armor Plating Improved Medium Armor Plating Improved Shield Generator Hacking Suite System Restoration Module Minigun Minigun Minigun Enhanced Autogun Improved Grenade Launcher Improved Grenade Launcher Concussive RPG [Rating: 34] Favorites ----------- Power Light Ion Engine Engine Light Ion Engine Power Core Micro Nuclear Core Propulsion Wheel Treads Improved Treads Wheel Wheel Flight Unit Improved VTOL Module Utility Huge Storage Unit Device Seismic Detector Storage Huge Storage Unit Processor Improved Targeting Computer Protection Improved Medium Armor Plating Weapon Autogun Ballistic Gun Autogun Launcher Improved Grenade Launcher Slashing Weapon Scythe Build | -11 -10 -10 -8 ------- Run | Yrd Mat Sub Mat Slots Evolved 4 | . . . 4 Power . | . . . . Propulsion 2 | . . . 2 Utility 2 | . . . 2 Weapon . | . . . . Parts Attached 45 | 6 12 6 21 Power 6 | 1 2 . 3 Engine 4 | 1 2 . 1 Core 2 | . . . 2 Reactor . | . . . . Propulsion 14 | 2 3 3 6 Treads 6 | . 2 2 2 Leg . | . . . . Wheel 7 | 2 1 1 3 Hover . | . . . . Flight 1 | . . . 1 Utility 11 | 1 4 1 5 Device 4 | . 1 . 3 Storage 4 | 1 3 . . Processor 1 | . . 1 . Hackware . | . . . . Protection 2 | . . . 2 Artifact . | . . . . Weapon 14 | 2 3 2 7 Energy Gun . | . . . . Energy Cannon . | . . . . Ballistic Gun 11 | 2 3 2 4 Ballistic Cannon . | . . . . Launcher 2 | . . . 2 Special Weapon . | . . . . Impact Weapon . | . . . . Slashing Weapon 1 | . . . 1 Piercing Weapon . | . . . . Special Melee Weapon . | . . . . Unidentified Prototypes 3 | . . . 3 Parts Lost 6 | . 4 1 1 Power 2 | . 2 . . Propulsion 2 | . 1 . 1 Utility 1 | . . 1 . Weapon 1 | . 1 . . Highest Loss Streak 2 | . 2 1 1 To Critical Strikes 1 | . 1 . . Average Backups 18 | 3 9 15 24 Power . | . . . . Propulsion 5 | 2 4 5 5 Utility 5 | . 1 3 8 Weapon 6 | . 2 6 8 Tool/Special . | . . . . Unused Backups 32 | . . . 32 Power 1 | . . . 1 Propulsion 4 | . . . 4 Utility 14 | . . . 14 Weapon 12 | . . . 12 Tool/Special 1 | . . . 1 Average Slot Usage (%) 98 | . 97 100 98 Engine 7 | . 13 14 3 Core 3 | . . . 5 Treads 9 | . 9 2 10 Wheel 23 | . 18 26 25 Device 11 | . 12 4 11 Storage 11 | . 14 14 9 Processor 4 | . . 9 6 Protection 5 | . . . 8 Ballistic Gun 18 | . 27 28 12 Slashing Weapon 3 | . . . 5 Peak Build Rating 34 | 6 11 13 34 Average Rating 20 | 5 9 11 27 On Entrance 7 | . 6 11 12 Avg Prop Armor Cover (%) 9 | . 13 . 9 Naked Turns . | . . . . Heaviest Build 100 | 10 89 89 100 Greatest Support 41 | 26 26 20 41 Greatest Overweight (x) 8 | . 8 4 4 Average Overweight (x) 2 | . 2 4 2 Largest Inventory Capacity 25 | 8 25 25 25 Average Capacity 22 | 7 18 25 25 Most Carried 25 | 6 16 17 25 Average Carried 18 | 4 9 15 24 Final Capacity 25 | 8 25 25 25 Final Carried 24 | 6 15 17 24 Class Distribution -------------------- 94% | Mutant 5% | Scavenger-Mutant Dominant Class ---------------- Mutant | -10/Materials Mutant | -10/Subcaves Mutant | -8/Materials Resources | -11 -10 -10 -8 ----------- Run | Yrd Mat Sub Mat Matter Collected 1958 | 300 397 113 1148 Remotely . | . . . . Salvage Created 2024 | 201 526 113 1184 Parts 122 | 12 25 9 76 Haulers Intercepted 5 | . 2 . 3 Recyclers Shooed 3 | 1 1 . 1 Parts Field Recycled . | . . . . Retrieved Matter . | . . . . Parts Self-Destructed 2 | . . 2 . Prevented . | . . . . Parts Restored . | . . . . Kills | -11 -10 -10 -8 ------- Run | Yrd Mat Sub Mat Combat Hostiles Destroyed 38 | . 11 2 25 Melee 10 | . . . 10 Guns 25 | . 11 2 12 AOE 3 | . . . 3 Classes Destroyed 10 | 2 3 1 4 Worker 1 | . . . 1 Tunneler 5 | 5 . . . Hauler 5 | . 2 . 3 Recycler 3 | 1 1 . 1 Operator 2 | . . . 2 Watcher 2 | . . . 2 Swarmer 14 | . 3 . 11 Grunt 13 | . 8 . 5 Sentry 9 | . . . 9 Subdweller 2 | . . 2 . Best Kill Streak 5 | 4 3 2 5 Combat Bots Only 4 | . 3 2 4 Max Kills in Single Turn 3 | 1 1 1 3 Gunslinging . | . . . . Exploded 3 | . . . 3 Melee 1 | . . . 1 Uniques/NPCs Destroyed . | . . . . Combat | -11 -10 -10 -8 -------- Run | Yrd Mat Sub Mat Hostile Shots Fired 219 | . 81 8 130 Missed 65 | . 16 3 46 Hits 154 | . 65 5 84 Projectile 154 | . 65 5 84 Critical Strikes 2 | . 1 . 1 Damage Taken 1793 | . 675 133 985 Core 336 | . 98 55 183 Absorbed by Shields . | . . . . Regen/Repaired (Parts) 129 | . . . 129 Core Remaining (%) 69 | 100 . 38 . Volleys Fired 165 | 20 78 6 61 Largest 2 | 2 2 2 2 Hottest 46 | 40 40 46 46 Shots Fired 327 | 40 155 12 120 Gun 326 | 40 155 12 119 Cannon . | . . . . Launcher 1 | . . . 1 Special . | . . . . Kinetic 326 | 40 155 12 119 Thermal . | . . . . Explosive 1 | . . . 1 Electromagnetic . | . . . . Robot Hit Streak 16 | 7 11 11 16 Robot Miss Streak 5 | 3 4 . 5 Penetration Max . | . . . . Secondary Targets 2 | . . . 2 Max Gunslinging Chain 1 | . . . 1 Shots Hit Robots 261 | 25 108 11 117 Core Hits 99 | 13 34 4 48 Critical Kills 2 | . . . 2 Critical Parts Destroyed 2 | 1 1 . . Critical Strikes 6 | 1 1 . 4 Destroy 4 | 1 1 . 2 Sever 2 | . . . 2 Melee Attacks 52 | . . . 52 Impact . | . . . . Slashing 52 | . . . 52 Piercing . | . . . . Sneak Attacks 3 | . . . 3 Combat Hostiles . | . . . . Follow-up Attacks . | . . . . Damage Inflicted 3716 | 192 965 169 2390 Guns 2728 | 192 965 169 1402 Cannons . | . . . . Explosions 79 | . . . 79 Melee 909 | . . . 909 Ramming . | . . . . Kinetic 2728 | 192 965 169 1402 Thermal . | . . . . Explosive 79 | . . . 79 Electromagnetic . | . . . . Impact . | . . . . Slashing 909 | . . . 909 Piercing . | . . . . Highest Corruption 3 | . . . 3 Average Corruption 3 | . . . 3 Corruption Purged . | . . . . Corruption Blocked . | . . . . Effects 17 | . . . 17 Message Errors 5 | . . . 5 Matter Fused 8 | . . . 8 Data Loss (minor) 2 | . . . 2 Data Loss (major) 2 | . . . 2 Overload Shots . | . . . . Overflow Damage 89 | . . . 89 Projectiles . | . . . . Explosions . | . . . . Melee 89 | . . . 89 Knockbacks . | . . . . Impact . | . . . . Kinetic . | . . . . Secondary . | . . . . Self-Inflicted Damage . | . . . . Shots . | . . . . Rammed . | . . . . Targets Rammed . | . . . . Kicked . | . . . . Crushed . | . . . . Highest Temperature 40 | . 18 . 40 Average Temperature 8 | . 6 . 9 Received Heat Transfer 564 | . 267 27 270 Siege Activations . | . . . . Martial Activations . | . . . . Shielding Activations . | . . . . Robots Disrupted . | . . . . Combat Hostiles . | . . . . Robots Corrupted . | . . . . Combat Hostiles . | . . . . Parts Fried . | . . . . Impact Corruptions . | . . . . Robots Melted . | . . . . Combat Hostiles . | . . . . Parts Melted . | . . . . Heat Transferred . | . . . . Parts Sabotaged . | . . . . Parts Stolen . | . . . . Parts Stripped . | . . . . Power Chain Reactions . | . . . . Alert | -11 -10 -10 -8 ------- Run | Yrd Mat Sub Mat Maximum Alert Level . | . . . . Low Security (%) 100 | 100 100 . 100 Level 1 . | . . . . Level 2 . | . . . . Level 3 . | . . . . Level 4 . | . . . . Level 5 . | . . . . High Security . | . . . . Max Security . | . . . . Peak Influence 179 | 10 75 . 179 Initial . | . . . . Average 58 | 2 19 . 81 Influence Increases 1141 | 30 294 . 817 Destroy 0b10 Robot/C 720 | . 220 . 500 Destroy 0b10 Robot/NC 90 | 30 15 . 45 Destroy Leader 184 | . 44 . 140 Successful Hack 15 | . . . 15 Destroy Structure 27 | . . . 27 Partial Spotted 15 | . . . 15 Lose Combat Pursuer 90 | . 15 . 75 Influence Decreases 1000 | 30 294 . 676 Time Decay 800 | 30 254 . 516 Lost Part 50 | . 40 . 10 Purge Threat 150 | . . . 150 Squads Dispatched 3 | . 2 . 1 Investigation 1 | . . . 1 Extermination . | . . . . Reinforcement 2 | . 2 . . Assault . | . . . . Garrison . | . . . . Intercept . | . . . . Searches Triggered . | . . . . Construction Impeded . | . . . . Haulers Reinforced . | . . . . Active Scanning Responses . | . . . . Cargo Convoy Interrupts . | . . . . Stealth | -11 -10 -10 -8 --------- Run | Yrd Mat Sub Mat Distress Signals 4 | . . . 4 Communications Jammed . | . . . . Distress Signals . | . . . . Times Spotted 61 | . 20 2 39 Peak Tracking Total 6 | . 3 2 6 Tactical Retreats 5 | . 1 . 4 Traps | -11 -10 -10 -8 ------- Run | Yrd Mat Sub Mat Traps Triggered 3 | . 2 . 1 Indirectly . | . . . . Trap Hack Attempts . | . . . . Triggered . | . . . . Disarmed . | . . . . Reprogrammed . | . . . . Reused . | . . . . Traps Extracted . | . . . . Installed . | . . . . Triggered . | . . . . Machines | -11 -10 -10 -8 ---------- Run | Yrd Mat Sub Mat Machines Disabled . | . . . . Max in Single Turn . | . . . . Machines Repaired . | . . . . Machines Dismantled . | . . . . Machines Sabotaged . | . . . . Overloaded Fab Kills . | . . . . Hacking | -11 -10 -10 -8 --------- Run | Yrd Mat Sub Mat Machines Accessed 14 | . 3 . 11 Terminals 11 | . 2 . 9 Fabricators . | . . . . Repair Stations 1 | . . . 1 Recycling Units 1 | . 1 . . Scanalyzers 1 | . . . 1 Garrison Access . | . . . . Total Hacks 43 | . 6 . 37 Successful 17 | . . . 17 Failed 26 | . 6 . 20 Catastrophic 5 | . 2 . 3 Database Lockouts . | . . . . Manual 30 | . 3 . 27 Terminals 34 | . 3 . 31 Fabricators . | . . . . Repair Stations 2 | . . . 2 Recycling Units 3 | . 3 . . Scanalyzers 4 | . . . 4 Garrison Access . | . . . . Terminal Hacks 5 | . . . 5 Prototype ID Bank 1 | . . . 1 Unreport Threat 1 | . . . 1 Recall Investigation 1 | . . . 1 Hauler Manifests 1 | . . . 1 Registered Prototypes 1 | . . . 1 Fabricator Hacks . | . . . . Repair Station Hacks 2 | . . . 2 Scan Component 1 | . . . 1 Repair 1 | . . . 1 Recycling Unit Hacks . | . . . . Scanalyzer 3 | . . . 3 Retrieve Study 3 | . . . 3 Garrison Access Hacks . | . . . . Unauthorized Hacks 7 | . . . 7 Terminals 7 | . . . 7 Assimilate 1 | . . . 1 Botnet 6 | . . . 6 Fabricators . | . . . . Repair Stations . | . . . . Recycling Units . | . . . . Scanalyzers . | . . . . Garrison Access . | . . . . Data Cores Recovered 1 | . . . 1 Used . | . . . . Hacking Detections 14 | . 3 . 11 Full Trace Events 1 | . . . 1 Feedback Events . | . . . . Feedback Blocked . | . . . . Robot Schematics Acquired . | . . . . Robots Built . | . . . . Authchips . | . . . . Time . | . . . . Total Robot Build Rating . | . . . . Part Schematics Acquired . | . . . . Parts Built . | . . . . Authchips . | . . . . Time . | . . . . Total Part Build Rating . | . . . . Part Studies Acquired 3 | . . . 3 Parts Repaired 1 | . . . 1 Time 32 | . . . 32 Parts Recycled . | . . . . Recycled Matter . | . . . . Retrieved Matter . | . . . . Retrieved Components . | . . . . Parts Scanalyzed . | . . . . Part Schematics Acquired . | . . . . Parts Damaged . | . . . . Bothacking | -11 -10 -10 -8 ------------ Run | Yrd Mat Sub Mat Used RIF Installer . | . . . . Robots Hacked . | . . . . Non-combat . | . . . . Combat . | . . . . Robot Hacks Applied . | . . . . Relay Couplers Released . | . . . . Fabnet Peak Effective % . | . . . . Robots Rewired . | . . . . Allies Hacked . | . . . . Hacks Repelled . | . . . . Allies | -11 -10 -10 -8 -------- Run | Yrd Mat Sub Mat Total Allies . | . . . . Largest Group . | . . . . Highest-Rated Group . | . . . . Highest-Rated Ally . | . . . . Total Orders . | . . . . Ally Attacks . | . . . . Total Damage . | . . . . Kills . | . . . . Allies Corrupted . | . . . . Allies Melted . | . . . . Intel | -11 -10 -10 -8 ------- Run | Yrd Mat Sub Mat Active Infowar (turns) 2444 | . 778 63 1603 Sensors 517 | . . . 517 Terrain 841 | . 778 63 . Seismic 1603 | . . . 1603 Robot Analysis Total . | . . . . Derelict Logs Recovered 2 | . . 2 . Drone Launches . | . . . . Drone Recoveries . | . . . . Exploration | -11 -10 -10 -8 ------------- Run | Yrd Mat Sub Mat Turns Passed 3079 | 143 886 204 1846 Spaces Moved 1634 | 84 432 125 993 Core 1 | 1 . . . Treads 1 | . 1 . . Legs . | . . . . Wheels 1632 | 83 431 125 993 Hover . | . . . . Flight . | . . . . Fastest Speed 50 | 50 90 140 113 Average Speed 127 | 90 133 140 127 Slowest Speed 200 | 100 200 140 150 Overloaded Moves . | . . . . Propulsion Burnouts . | . . . . Robots Hopped . | . . . . Potential Cave-ins 2 | . . . 2 Cave-ins Triggered . | . . . . Exploration Rate (%) 43 | 5 67 10 91 Regions Visited 3 Branch Regions 1 Pre-discovered Areas 2 | . . 2 . Known Exits Taken . | . . . . Unknown Exits Taken 3 | 1 1 1 . Scrap Searched . | . . . . Spaces Dug 21 | . . . 21 Terrain Destroyed 27 | . . . 27 Melee 21 | . . . 21 Projectile . | . . . . AOE 6 | . . . 6 Terrain Rammed . | . . . . Walls Destroyed . | . . . . Machines Disabled . | . . . . Actions | -11 -10 -10 -8 --------- Run | Yrd Mat Sub Mat Total 2275 | 115 608 141 1411 Wait 256 | . 61 1 194 Move 1631 | 83 431 124 993 Hop . | . . . . Pick Up 58 | 6 14 3 35 Fast Attach 18 | 6 4 . 8 Attach 15 | . 7 1 7 Detach 3 | . 2 . 1 Swap 40 | . 8 6 26 Drop 37 | . 3 . 34 Fire 165 | 20 78 6 61 Melee 52 | . . . 52 Ram . | . . . . Kick . | . . . . Crush . | . . . . Escape Stasis . | . . . . Rewire . | . . . . Trap . | . . . . Miscellaneous . | . . . . Route ------- -11/Scrapyard -10/Materials (discovered 5 exits: [*Mat x2] / [*Min x2] / [*Sub]) -10/Subcaves -8/Materials (discovered 5 exits: [*Fac x3] / [*Sto x2]) History --------- Turn | Location | Event 11 | -11/Scrapyard | Discovered new exit (range 16) 144 | -11/Scrapyard | Entered Materials 307 | -10/Materials | Build established: Mutant 392 | -10/Materials | Discovered new exit (range 9) 402 | -10/Materials | Discovered new exit (range 15) 519 | -10/Materials | Discovered new exit (range 16) 805 | -10/Materials | Discovered new exit (range 15) 900 | -10/Materials | Discovered new exit (range 5) 1030 | -10/Materials | Entered Subcaves 1086 | -10/Subcaves | Discovered new exit (range 14) 1112 | -10/Subcaves | Core integrity fell below 50% 1150 | -10/Subcaves | Learned location of Recycling (-8) 1234 | -10/Subcaves | Entered Materials 1234 | -8/Materials | Evolved 4 slots: Propulsion x2, Utility x2 1729 | -8/Materials | Discovered new exit (range 5) 2018 | -8/Materials | Discovered new exit (range 15) 2327 | -8/Materials | Repaired Imp. Treads 2600 | -8/Materials | Discovered new exit (range 14) 2728 | -8/Materials | Discovered new exit (range 9) 2937 | -8/Materials | Discovered new exit (range 14) 3080 | -8/Materials | Self-destructed Last Messages --------------- 02904_ Dropped Minigun. 02904_ Acquired Unknown Ballistic Gun. 02904_ Identified Lgt. Assault Rifle. 02909_ Y-45 Defender destroyed. 02912_ Acquired 34 matter. 02936_ K-01 Serf collects debris. 02937_ EXIT=FOUND 02939_ K-01 Serf collects debris. 02962_ Connecting with Terminal... 02973_ System corrupted: Matter fused (-10). 03012_ Dropped Lgt. Assault Rifle. 03012_ Acquired Prototype Launcher. 03012_ Identified Adv. EMP Blaster. 03012_ Mic. Nuclear Core broken. 03012_ Faulty integration triggers power surge. 03014_ Dropped Faulty Adv. EMP Blaster. 03014_ Dropped Broken Mic. Nuclear Core. 03034_ System corrupted: Matter fused (-8). 03054_ System corrupted: Component data lost. 03062_ Acquired 38 matter. Map ----- +----------------------------------------------------+ | #???????????????????# """ """ #???# #??????# | | +?????????????????????""" """ #???# #??????# | | #???????????????????? #####"####???# < | | #????????????????????? # #???# | | ###?????????????????????####+#### """ #???# | | ????????????????????????# # """ #???##### | | ???????????????? ####### # """ #???????? | | ####??????????? # #???????? | | ????H " """ #???????? | | ####???????????? # """ #???????? | | ????????????????????##### # """ #???????? | | ????????????????????????# # #???????? | | ??????????????????????####+#+#############???????? | | ??????????????????????# #?????????????? | | ??????????????????????# """"" #?????????????? | | ??????????????????????# """"" #?????????????? | | ??????????????????????# """"" #?????????????? | | ??????????????????????# #?????????????? | | ?????###############??# """"" #?????????????? | | ?????# #??# """"" #?????????????? | | ?????# [ #??# """"" #?????????????? | | ?????# ] #??# #?????????????? | | ?????# #??# ] #?????????????? | | ?????# #??# * #?????????????? | | ?????# #??# ! #?????????????? | | ?????#######+#######??###@##########?????????????? | | ??????????# #?????????# #??????????????????????? | | ??????????# #?????????# #??????????????????????? | | ???#####??# #??######## #??????????????????????? | | ???# """ ?# #??# # #????????????#########?? | | ???# "T" ?# #??# [#!######???????# #?? | | ???# # #??# [!#[## ######### < #?? | | ???# # #??# *%+%= " #?? | | ???# ] + #??# *=#### ##########+######?? | | ???# # #??# [!!#??## ## # #??? | | ########### ##?#####+###??# ## #"" ] #??? | | []# ##### %= #?## ## #"T #??? | | *# ### # #"" """ #??? | | + " + # """ #??? | | //[ # ### = # # """ #??? | | /[[ # ##### #?##### # #??? | | /[[ #######???#######?????# # #??? | | ??????????????????????# ###########??? | | ???????????????????????#####????????????? | | #########????????????????????????????????????????? | | ?????????????????????????????????????????????????? | | | | | | | | | +----------------------------------------------------+ Best States ------------- Heat Dissipation 31 Energy Generation 15 Energy Capacity 250 Matter Stores 300 Matter Capacity 300 Sight Range 16 Robot Scan Range 15 Terrain Scan Range 16 Terrain Scan Density 10 Additional Mass Support 9 Armor Coverage 225 Evasion (%) 42 Targeting Accuracy 6 Recoil Reduction 2 Item Schematics ----------------- None Robot Schematics ------------------ None Fabricated ------------ Nothing Repaired ---------- Imp. Treads | 16% | -8/Materials Studied --------- Autogun | -8/Materials | Hacked Cesium-ion Thruster | -8/Materials | Hacked Scythe | -8/Materials | Hacked Alien Tech Used ----------------- None Achievements -------------- Item+ Challenges ------------ None Game ------ Seed RingBiometalInverter Manual? 0 Play Time 00:56:11 Cumulative 125.3 hours Start 2026.04.30 @ 09:03:43 End 2026.04.30 @ 11:26:29 Sessions 1 Manual Loads 0 Difficulty Rogue Special Mode None Game No. 104 Rogue 101 Adventurer 0 Explorer 3 Win Type - Total 1 Types 1/0/0/0/0/0/0/0/0/0 Lore% 25 Gallery% 44 Achievement% 26 Wizard Run 0 Options --------- Layout 0 ASCII 0 Keyboard 0 Movement Numpad Keybinds 0 Fullscreen 2 Font 16/SmallcapsGlow Map View 88x55 Zoom Use 0% Tactical HUD 1 Map Filters NONE Filters NONE Steam 1 RUN: 24fca5d0-20ac-4942-b037-c0ab6b27499c